fUSD/lending_fUSD_20260127
["ID","MTS","AMOUNT","RATE_DAILY","PERIOD"]
[403698279,1769490649529,-450.0,0.00025,2]
[403698280,1769490649538,-726.92,0.00025049,2]
[403698281,1769490649547,-179.98,0.00025049,2]
[403698282,1769490649556,-172.23,0.00025049,2]
[403698283,1769490649565,-359.96,0.00025049,2]
[403698284,1769490649574,-172.27,0.00025049,2]
[403698285,1769490649583,-179.98,0.00025049,2]
[403698286,1769490649593,-468.85,0.00025049,2]
[403698287,1769490649603,-359.87,0.00025049,2]
[403698288,1769490649612,-468.76,0.00025049,2]
[403698289,1769490649622,-468.76,0.00025049,2]
[403698290,1769490649631,-468.76,0.00025049,2]
[403698291,1769490649640,-172.23,0.00025049,2]
[403698292,1769490649649,-468.76,0.00025049,2]
[403698293,1769490649658,-172.23,0.00025049,2]
[403698294,1769490649668,-937.52,0.00025049,2]
[403698295,1769490649678,-172.23,0.00025049,2]
[403698296,1769490649688,-172.23,0.00025049,2]
[403698297,1769490649697,-172.23,0.00025049,2]
[403698298,1769490649707,-175.65,0.00025049,2]
[403698299,1769490649716,-172.23,0.00025049,2]
[403698300,1769490649726,-172.23,0.00025049,2]
[403698301,1769490649736,-172.23,0.00025049,2]
[403698302,1769490649745,-172.23,0.00025049,2]
[403698303,1769490649754,-172.23,0.00025049,2]
[403698304,1769490649763,-172.23,0.00025049,2]
[403698305,1769490649773,-401.19111454,0.00025064,2]
[403698306,1769490649782,-775.47832561,0.00025067,2]
[403698307,1769490649792,-3543.0,0.00025067,2]
[403698308,1769490649804,-644.79446246,0.00025067,2]
[403698309,1769490649813,-503.0,0.00025104,8]
[403698310,1769490649822,-12481.0,0.00025149,2]
[403698311,1769490649832,-4970.18,0.00025223,2]
[403698312,1769490649841,-491.01,0.00025323,2]
[403698313,1769490649850,-463.34,0.00025323,2]
[403698314,1769490649859,-969.46,0.00025323,2]
[403698315,1769490649868,-916.0,0.00025641,2]
[403698316,1769490649878,-1204.0,0.00025641,2]
[403698317,1769490649887,-4831.0,0.00025641,2]
[403698318,1769490649896,-6570.0,0.00025641,2]
[403698319,1769490649905,-567.0,0.00025641,2]
[403698320,1769490649915,-3477.0,0.00025734,2]
[403698321,1769490649927,-1408.0,0.00025734,2]
[403698322,1769490649937,-1333.0,0.00025734,2]
[403698323,1769490649947,-615.0,0.00025734,2]
[403698324,1769490649958,-1269.0,0.00025734,2]
[403698325,1769490649967,-184.0,0.00025734,2]
[403698326,1769490649977,-503.0,0.0002575,9]
[403698327,1769490649986,-376.0,0.00025775,7]
[403698328,1769490649995,-4551.14,0.000258,2]
[403698329,1769490650005,-172.18,0.00025871,2]
[403698330,1769490650015,-7071.09675628,0.00026,2]
[403698331,1769490650025,-800.0,0.00026136,10]
[403698332,1769490650035,-800.0,0.00026136,10]
[403698333,1769490650046,-800.0,0.00026136,10]
[403698334,1769490650057,-800.0,0.00026136,10]
[403698335,1769490650067,-800.0,0.00026136,10]
[403698336,1769490650078,-800.0,0.00026136,10]
[403698337,1769490650090,-800.0,0.00026136,10]
[403698338,1769490650099,-835.00735566,0.00026136,10]
[403698339,1769490650108,-613.06,0.00026241,2]
[403698340,1769490650118,-613.06,0.00026241,2]
[403698341,1769490650128,-613.06,0.00026241,2]
[403698342,1769490650138,-613.06,0.00026241,2]
[403698343,1769490650149,-613.06,0.00026241,2]
[403698344,1769490650161,-613.06,0.00026241,2]
[403698345,1769490650172,-613.23,0.00026241,2]
[403698346,1769490650182,-4209.39279102,0.000263,2]
[403698347,1769490650190,-2205.07255022,0.00026346,2]
[403698348,1769490650199,-150.00414663,0.00026362,30]
[403698349,1769490650208,-503.0,0.00026396,9]
[403698350,1769490650217,-300.0,0.00026399,10]
[403698351,1769490650226,-27433.21015108,0.000264,2]
[403698352,1769490650235,-416.03518578,0.00026433,2]
[403698353,1769490650244,-1000.0,0.00026575,2]
[403698354,1769490650253,-161.0,0.00026581,7]
[403698355,1769490650263,-150.83,0.00026693,2]
[403698356,1769490650272,-300.0,0.00026693,2]
[403698357,1769490650282,-150.0,0.00026693,2]
[403698358,1769490650291,-150.0,0.00026693,2]
[403698359,1769490650301,-300.0,0.00026693,2]
[403698360,1769490650315,-150.0,0.00026693,2]
[403698361,1769490650324,-150.0,0.00026693,2]
[403698362,1769490650334,-150.0,0.00026693,2]
[403698363,1769490650347,-150.0,0.00026693,2]
[403698365,1769490650356,-151.0,0.00026697,7]
[403698366,1769490650365,-6198.23,0.000267,7]
[403698367,1769490650375,-1000.0,0.00026849,2]
[403698368,1769490650385,-1000.0,0.00026864,2]
[403698369,1769490650395,-886.32653699,0.000269,2]
[403698370,1769490650404,-2108.2,0.00027,7]
[403698371,1769490650413,-250.0,0.00027,2]
[403698372,1769490650424,-1979.45593073,0.00027,14]
[403698373,1769490650433,-1032.99064523,0.00027,2]
[403698374,1769490650443,-530.0,0.00027,2]
[403698375,1769490650452,-2000.0,0.00027,2]
[403698376,1769490650461,-500.0,0.00027,2]
[403698377,1769490650470,-2321.865743,0.0002701,2]
[403698378,1769490650480,-649.50276679,0.0002702,2]
[403698379,1769490650489,-503.0,0.00027042,10]
[403698380,1769490650498,-2000.0,0.000271,2]
[403698381,1769490650509,-1000.0,0.00027123,2]
[403698382,1769490650519,-3682.89,0.00027123,2]
[403698383,1769490650529,-150.0,0.00027123,2]
[403698384,1769490650538,-1310.39,0.00027199,2]
[403698385,1769490650547,-150.0,0.00027369,2]
[403698386,1769490650556,-886.4,0.0002737,2]
[403698387,1769490650567,-742.0977264,0.0002737,30]
[403698388,1769490650578,-895.2,0.0002737,2]
[403698390,1769490650587,-379.63543949,0.0002737,2]
[403698391,1769490650596,-376.0,0.00027386,7]
[403698392,1769490650605,-4105.84632426,0.0002739,2]
[403698393,1769490650615,-8110.11588829,0.0002739,2]
[403698394,1769490650625,-4635.9564551,0.0002739,120]
[403698395,1769490650634,-1361.76,0.00027397,2]
[403698396,1769490650643,-1361.76,0.00027397,2]
[403698397,1769490650652,-1361.76,0.00027397,2]
[403698398,1769490650662,-1361.76,0.00027397,2]
[403698399,1769490650672,-1361.76,0.00027397,2]
[403698400,1769490650680,-1361.76,0.00027397,2]
[403698401,1769490650690,-1361.76,0.00027397,2]
[403698402,1769490650700,-1361.76,0.00027397,2]
[403698403,1769490650710,-1361.76,0.00027397,2]
[403698404,1769490650720,-1361.76,0.00027397,2]
[403698406,1769490650729,-1361.76,0.00027397,2]
[403698407,1769490650739,-1361.76,0.00027397,2]
[403698408,1769490650748,-1361.76,0.00027397,2]
[403698409,1769490650758,-1361.76,0.00027397,2]
[403698410,1769490650767,-1361.76,0.00027397,2]
[403698411,1769490650776,-1361.76,0.00027397,2]
[403698412,1769490650785,-1361.76,0.00027397,2]
[403698413,1769490650795,-1361.76,0.00027397,2]
[403698414,1769490650804,-1361.76,0.00027397,2]
[403698415,1769490650813,-1361.76,0.00027397,2]
[403698417,1769490650822,-1361.76,0.00027397,2]
[403698418,1769490650831,-1361.76,0.00027397,2]
[403698419,1769490650840,-1361.76,0.00027397,2]
[403698420,1769490650849,-1361.86867294,0.00027397,2]
[403698421,1769490650858,-500.0,0.00027397,15]
[403698422,1769490650868,-500.0,0.00027397,15]
[403698423,1769490650878,-500.0,0.00027397,15]
[403698424,1769490650888,-500.0,0.00027397,15]
[403698425,1769490650897,-582.38050732,0.00027397,15]
[403698426,1769490650907,-1000.0,0.00027397,2]
[403698427,1769490650917,-500.0,0.00027397,120]
[403698428,1769490650926,-377.29964469,0.00027397,7]
[403698429,1769490650937,-300.0,0.00027397,2]
[403698430,1769490650946,-1225.03,0.00027397,2]
[403698431,1769490650955,-39859.73,0.00027397,2]
[403698432,1769490650964,-518.73,0.00027397,2]
[403698433,1769490650974,-500.0,0.00027397,30]
[403698434,1769490650984,-1445.76,0.00027397,2]
[403698435,1769490650993,-219.157138,0.00027397,7]
[403698436,1769490651002,-219.157138,0.00027397,7]
[403698437,1769490651011,-219.157138,0.00027397,7]
[403698438,1769490651021,-219.157138,0.00027397,7]
[403698439,1769490651030,-219.157138,0.00027397,7]
[403698440,1769490651039,-219.157138,0.00027397,7]
[403698441,1769490651048,-219.157138,0.00027397,7]
[403698442,1769490651057,-219.157138,0.00027397,7]
[403698443,1769490651067,-219.157138,0.00027397,7]
[403698444,1769490651077,-219.157138,0.00027397,7]
[403698445,1769490651087,-219.157138,0.00027397,7]
[403698446,1769490651098,-219.157138,0.00027397,7]
[403698447,1769490651109,-219.157138,0.00027397,7]
[403698448,1769490651118,-219.157138,0.00027397,7]
[403698449,1769490651128,-219.157138,0.00027397,7]
[403698450,1769490651138,-219.157138,0.00027397,7]
[403698452,1769490651383,-219.157138,0.00027397,7]
[403698453,1769490651393,-219.157138,0.00027397,7]
[403698454,1769490651403,-219.157138,0.00027397,7]
[403698455,1769490651412,-219.157138,0.00027397,7]
[403698456,1769490651422,-151.0,0.00027397,7]
[403698457,1769490651431,-151.0,0.00027397,7]
[403698458,1769490651440,-151.0,0.00027397,7]
[403698459,1769490651450,-151.0,0.00027397,7]
[403698460,1769490651460,-151.0,0.00027397,7]
[403698461,1769490651470,-151.0,0.00027397,7]
[403698462,1769490651480,-151.0,0.00027397,7]
[403698463,1769490651489,-151.0,0.00027397,7]
[403698464,1769490651499,-151.0,0.00027397,7]
[403698466,1769490651508,-151.0,0.00027397,7]
[403698467,1769490651518,-151.0,0.00027397,7]
[403698468,1769490651527,-151.0,0.00027397,7]
[403698469,1769490651536,-151.0,0.00027397,7]
[403698470,1769490651546,-151.0,0.00027397,7]
[403698471,1769490651555,-151.0,0.00027397,7]
[403698472,1769490651566,-250.543557,0.00027397,7]
[403698473,1769490651576,-210.89046941,0.00027397,4]
[403698474,1769490651585,-150.0,0.00027397,5]
[403698475,1769490651594,-160.07892481,0.00027397,5]
[403698476,1769490651603,-159.12025721,0.00027397,5]
[403698477,1769490651613,-519.32930246,0.00027397,5]
[403698478,1769490651623,-9417.69161693,0.00027398,30]
[403698479,1769490651634,-500.0,0.000274,7]
[403698480,1769490651643,-500.0,0.000274,7]
[403698481,1769490651653,-500.0,0.000274,7]
[403698482,1769490651662,-500.0,0.000274,7]
[403698483,1769490651671,-500.0,0.000274,7]
[403698484,1769490651681,-500.0,0.000274,7]
[403698485,1769490651690,-500.0,0.000274,7]
[403698486,1769490651699,-500.0,0.000274,7]
[403698487,1769490651709,-500.0,0.000274,7]
[403698488,1769490651719,-500.0,0.000274,7]
[403698489,1769490651728,-500.0,0.000274,7]
[403698490,1769490651737,-500.0,0.000274,7]
[403698492,1769490651746,-500.0,0.000274,7]
[403698493,1769490651755,-500.0,0.000274,7]
[403698494,1769490651764,-500.0,0.000274,7]
[403698495,1769490651773,-500.0,0.000274,7]
[403698496,1769490651782,-500.0,0.000274,7]
[403698497,1769490651791,-500.0,0.000274,7]
[403698498,1769490651801,-407.7,0.000274,7]
[403698499,1769490651811,-558.94,0.00027482,2]
[403698500,1769490651819,-179.98,0.00027482,2]
[403698501,1769490651828,-179.98,0.00027482,2]
[403698502,1769490651838,-468.76,0.00027482,2]
[403698504,1769490651848,-179.98,0.00027482,2]
[403698505,1769490651857,-468.76,0.00027482,2]
[403698506,1769490651867,-179.98,0.00027482,2]
[403698507,1769490651876,-468.76,0.00027482,2]
[403698508,1769490651886,-179.98,0.00027482,2]
[403698509,1769490651896,-250.91,0.00027482,2]
[403698510,1769490651906,-359.96,0.00027482,2]
[403698511,1769490651915,-200.91158946,0.000275,2]
[403698512,1769490651924,-548.84477082,0.000275,2]
[403698513,1769490651933,-335.4210786,0.00027599,30]
[403698514,1769490651943,-4551.14,0.000276,2]
[403698515,1769490651955,-161.0,0.00027616,14]
[403698516,1769490651964,-376.0,0.00027616,14]
[403698518,1769490651973,-1000.0,0.00027671,2]
[403698519,1769490651984,-641.40939598,0.00027671,30]
[403698520,1769490651994,-503.0,0.00027688,11]
[403698521,1769490652004,-150.00414663,0.0002773,34]
[403698522,1769490652013,-431.42848765,0.00027802,2]
[403698523,1769490652023,-804.17102365,0.00027806,2]
[403698524,1769490652032,-3543.0,0.00027806,2]
[403698525,1769490652042,-668.65185757,0.00027806,2]
[403698526,1769490652051,-1000.0,0.00027864,2]
[403698527,1769490652060,-1000.0,0.00027945,2]
[403698528,1769490652070,-534.50782998,0.00027945,30]
[403698529,1769490652079,-154.25,0.00027945,91]
[403698530,1769490652088,-250.0,0.00027945,5]
[403698532,1769490652098,-71235.79568072,0.00028,2]
[403698533,1769490652107,-196.4083474,0.00028,120]
[403698534,1769490652116,-50796.40922362,0.00028,2]
[403698535,1769490652126,-160.0,0.00028,2]
[403698536,1769490652135,-6198.23,0.00028,7]
[403698537,1769490652144,-1000.0,0.00028,2]
[403698538,1769490652154,-1000.0,0.00028219,2]
[403698539,1769490652163,-503.0,0.00028333,11]
[403698540,1769490652172,-427.60626398,0.00028356,30]
[403698541,1769490652182,-1000.0,0.00028493,2]
[403698542,1769490652191,-350.0,0.00028493,5]
[403698543,1769490652199,-1958.36,0.000285,14]
[403698544,1769490652209,-916.0,0.00028641,2]
[403698545,1769490652219,-1204.0,0.00028641,2]
[403698546,1769490652228,-4831.0,0.00028641,2]
[403698547,1769490652238,-6570.0,0.00028641,2]
[403698548,1769490652247,-567.0,0.00028641,2]
[403698549,1769490652256,-1303.43648838,0.00028646,15]
[403698550,1769490652265,-3477.0,0.00028734,2]
[403698551,1769490652274,-1408.0,0.00028734,2]
[403698552,1769490652284,-1333.0,0.00028734,2]
[403698554,1769490652293,-615.0,0.00028734,2]
[403698555,1769490652303,-1269.0,0.00028734,2]
[403698556,1769490652315,-184.0,0.00028734,2]
[403698557,1769490652326,-500.0,0.00028767,120]
[403698558,1769490652337,-1000.0,0.00028767,2]
[403698559,1769490652350,-320.70469799,0.00028767,30]
[403698560,1769490652360,-500.0,0.00028822,120]
[403698561,1769490652370,-1000.0,0.00028864,2]
[403698562,1769490652381,-500.0,0.00028877,120]
[403698563,1769490652391,-276.15439092,0.00028931,120]
[403698564,1769490652401,-503.0,0.00028979,12]
[403698565,1769490652411,-161.0,0.00028997,14]
[403698566,1769490652420,-376.0,0.00028997,14]
[403698567,1769490652429,-501.7243881,0.00029,2]
[403698568,1769490652439,-550.0,0.00029,2]
[403698569,1769490652450,-1000.0,0.00029041,2]
[403698570,1769490652461,-450.0,0.00029041,5]
[403698571,1769490652471,-150.00414663,0.00029098,38]
[403698572,1769490652481,-447.3913417,0.00029171,2]
[403698573,1769490652490,-6198.23,0.000292,7]
[403698574,1769490652501,-808.81,0.00029272,30]
[403698575,1769490652513,-1000.0,0.00029315,2]
[403698576,1769490652523,-213.80313199,0.00029452,30]
[403698577,1769490652532,-1300.0,0.00029482,14]
[403698579,1769490652541,-900.0,0.00029482,14]
[403698580,1769490652550,-13274.47914687,0.000295,7]
[403698581,1769490652560,-1000.0,0.00029589,2]
[403698582,1769490652570,-150.0,0.00029589,2]
[403698583,1769490652579,-550.0,0.00029589,5]
[403698584,1769490652590,-503.0,0.00029625,12]
[403698585,1769490652600,-509.67,0.00029729,2]
[403698586,1769490652611,-700.0,0.00029756,14]
[403698587,1769490652620,-1000.0,0.00029863,2]
[403698588,1769490652629,-1000.0,0.00029864,2]
[403698589,1769490652639,-78817.67422332,0.000299,2]
[403698590,1769490652649,-237.03375612,0.0002999,2]
[403698591,1769490652659,-154.04975077,0.00029997,7]
[403698592,1769490652670,-150.0,0.0003,2]
[403698593,1769490652679,-150.0,0.0003,2]
[403698594,1769490652689,-21076.17112037,0.0003,4]
[403698595,1769490652701,-116550.21358985,0.0003,5]
[403698596,1769490652711,-10000.0,0.0003,10]
[403698597,1769490652721,-4713.40470163,0.0003,2]
[403698598,1769490652731,-213.06212518,0.0003,30]
[403698599,1769490652740,-19852.77280958,0.0003,2]
[403698600,1769490652749,-4149.26255662,0.0003,2]
[403698601,1769490652759,-2000.0,0.0003,14]
[403698602,1769490652768,-1816.15950997,0.0003,2]
[403698603,1769490652777,-440.93798486,0.0003,2]
[403698604,1769490652787,-162.90642149,0.0003,2]
[403698605,1769490652796,-1000.0,0.0003,30]
[403698606,1769490652806,-1000.0,0.0003,20]
[403698607,1769490652815,-1000.0,0.0003,20]
[403698608,1769490652823,-1000.0,0.0003,20]
[403698609,1769490652832,-1000.0,0.0003,20]
[403698610,1769490652841,-1000.0,0.0003,20]
[403698611,1769490652850,-1000.0,0.0003,20]
[403698612,1769490652859,-1000.0,0.0003,20]
[403698613,1769490652871,-1000.0,0.0003,20]
[403698614,1769490652880,-1000.0,0.0003,20]
[403698615,1769490652889,-1000.0,0.0003,20]
[403698616,1769490652899,-1000.0,0.0003,20]
[403698617,1769490652908,-1000.0,0.0003,20]
[403698618,1769490652918,-1000.0,0.0003,20]
[403698619,1769490652928,-1000.0,0.0003,20]
[403698620,1769490652937,-1000.0,0.0003,20]
[403698621,1769490652946,-1000.0,0.0003,20]
[403698622,1769490652957,-1000.0,0.0003,20]
[403698623,1769490652966,-1000.0,0.0003,20]
[403698624,1769490652975,-1000.0,0.0003,20]
[403698625,1769490652984,-1000.0,0.0003,20]
[403698626,1769490652994,-1000.0,0.0003,20]
[403698627,1769490653004,-1000.0,0.0003,20]
[403698628,1769490653014,-1000.0,0.0003,20]
[403698629,1769490653024,-1000.0,0.0003,20]
[403698630,1769490653035,-1000.0,0.0003,20]
[403698631,1769490653044,-1000.0,0.0003,20]
[403698632,1769490653053,-1000.0,0.0003,20]
[403698633,1769490653062,-1000.0,0.0003,20]
[403698634,1769490653072,-1000.0,0.0003,20]
[403698635,1769490653081,-1000.0,0.0003,20]
[403698636,1769490653091,-1000.0,0.0003,20]
[403698637,1769490653101,-1000.0,0.0003,20]
[403698638,1769490653111,-803.0,0.0003,20]
[403698639,1769490653120,-500.0,0.0003,7]
[403698640,1769490653130,-500.0,0.0003,7]
[403698641,1769490653139,-500.0,0.0003,7]
[403698642,1769490653149,-500.0,0.0003,7]
[403698643,1769490653159,-500.0,0.0003,7]
[403698644,1769490653168,-500.0,0.0003,7]
[403698645,1769490653178,-500.0,0.0003,7]
[403698646,1769490653187,-500.0,0.0003,7]
[403698647,1769490653197,-187.88,0.0003,22]
[403698648,1769490653206,-1533.577315,0.0003,2]
[403698649,1769490653215,-1000.0,0.0003,7]
[403698650,1769490653225,-1329.6,0.0003011,30]
[403698651,1769490653235,-1342.8,0.0003011,30]
[403698652,1769490653244,-569.45315923,0.0003011,30]
[403698653,1769490653253,-1072.86823512,0.0003013,2]
[403698654,1769490653263,-13839.98591215,0.0003013,2]
[403698655,1769490653272,-1508.95721181,0.0003013,5]
[403698656,1769490653281,-633.59015781,0.0003013,2]
[403698657,1769490653290,-5055.74269761,0.0003013,2]
[403698658,1769490653300,-201.56081743,0.0003013,2]
[403698659,1769490653313,-1223.58883991,0.0003013,2]
[403698660,1769490653322,-7724.90006798,0.0003013,2]
[403698661,1769490653332,-1000.0,0.00030137,2]
[403698662,1769490653342,-505.23716607,0.00030137,120]
[403698663,1769490653353,-1225.03,0.00030137,2]
[403698664,1769490653362,-167.81498137,0.00030137,5]
[403698665,1769490653371,-506.29,0.000302,30]
[403698666,1769490653381,-14016.72764122,0.000302,2]
[403698667,1769490653391,-503.0,0.00030271,13]
[403698668,1769490653401,-6198.23,0.000303,7]
[403698669,1769490653410,-1300.0,0.00030304,14]
[403698670,1769490653419,-900.0,0.00030304,14]
[403698671,1769490653430,-2008.0,0.000304,2]
[403698672,1769490653439,-1000.0,0.00030411,7]
[403698673,1769490653449,-195.99,0.00030411,120]
[403698674,1769490653459,-150.00414663,0.00030467,42]
[403698676,1769490653469,-463.94482134,0.0003054,2]
[403698677,1769490653478,-833.92535153,0.00030545,2]
[403698678,1769490653488,-3543.0,0.00030545,2]
[403698679,1769490653497,-693.3919763,0.00030545,2]
[403698680,1769490653507,-152.0,0.00030578,3]
[403698681,1769490653517,-700.0,0.00030578,14]
[403698682,1769490653526,-1000.0,0.00030685,7]
[403698683,1769490653536,-500.0,0.00030795,2]
[403698684,1769490653545,-2000.0,0.000308,2]
[403698685,1769490653554,-1607.34929587,0.0003084,2]
[403698686,1769490653563,-1000.0,0.00030864,2]
[403698687,1769490653572,-8110.41270033,0.00030898,2]
[403698688,1769490653582,-503.0,0.00030917,14]
[403698689,1769490653591,-78948.5405615,0.0003095,2]
[403698690,1769490653600,-1000.0,0.00030959,7]
[403698691,1769490653610,-150.0,0.00031,4]
[403698692,1769490653619,-342.7245637,0.00031,5]
[403698693,1769490653628,-172.98945368,0.00031,120]
[403698694,1769490653638,-51531.29525978,0.00031,2]
[403698695,1769490653647,-161.0,0.00031,120]
[403698696,1769490653657,-600.0,0.00031,2]
[403698697,1769490653666,-1300.0,0.00031126,14]
[403698698,1769490653676,-900.0,0.00031126,14]
[403698700,1769490653778,-187.88,0.000312,24]
[403698701,1769490653788,-1009.4029,0.00031209,2]
[403698702,1769490653797,-22191.18368159,0.0003121,2]
[403698703,1769490653807,-1000.0,0.00031233,7]
[403698704,1769490653816,-2000.0,0.00031243,3]
[403698705,1769490653825,-2000.0,0.00031243,3]
[403698706,1769490653835,-1159.3356,0.00031243,3]
[403698707,1769490653843,-2000.0,0.00031243,3]
[403698708,1769490653853,-500.0,0.0003137,2]
[403698709,1769490653862,-1000.0,0.0003137,2]
[403698710,1769490653872,-604.226748,0.00031399,120]
[403698711,1769490653881,-700.0,0.000314,14]
[403698712,1769490653890,-150.0,0.000314,5]
[403698713,1769490653900,-165.17870493,0.000314,30]
[403698714,1769490653909,-6198.23,0.000314,7]
[403698715,1769490653918,-206.48743083,0.000314,7]
[403698716,1769490653928,-19716.5737146,0.0003143,4]
[403698717,1769490653937,-197.15964164,0.000315,2]
[403698718,1769490653946,-150.0,0.000315,2]
[403698719,1769490653956,-1000.0,0.00031507,7]
[403698720,1769490653965,-503.0,0.00031562,14]
[403698721,1769490653974,-916.0,0.00031641,2]
[403698723,1769490653984,-1204.0,0.00031641,2]
[403698724,1769490653993,-4831.0,0.00031641,2]
[403698725,1769490654002,-6570.0,0.00031641,2]
[403698726,1769490654011,-567.0,0.00031641,2]
[403698727,1769490654021,-3477.0,0.00031734,2]
[403698728,1769490654031,-1408.0,0.00031734,2]
[403698729,1769490654043,-1333.0,0.00031734,2]
[403698730,1769490654054,-615.0,0.00031734,2]
[403698731,1769490654064,-1269.0,0.00031734,2]
[403698732,1769490654074,-184.0,0.00031734,2]
[403698733,1769490654084,-1000.0,0.00031781,7]
[403698734,1769490654093,-173.68705177,0.000318,5]
[403698735,1769490654102,-150.00414663,0.00031835,45]
[403698736,1769490654112,-1000.0,0.00031864,2]
[403698737,1769490654121,-4551.14,0.000319,2]
[403698738,1769490654131,-481.11077973,0.00031909,2]
[403698739,1769490654140,-1300.0,0.00031948,14]
[403698740,1769490654149,-900.0,0.00031948,14]
[403698741,1769490654159,-151.0,0.00032,2]
[403698742,1769490654168,-500.0,0.00032,63]
[403698743,1769490654177,-300.0,0.00032,120]
[403698744,1769490654187,-191.6,0.00032,6]
[403698745,1769490654196,-400.0,0.00032014,30]
[403698746,1769490654205,-400.0,0.00032014,30]
[403698747,1769490654215,-400.0,0.00032014,30]
[403698748,1769490654224,-400.0,0.00032014,30]
[403698750,1769490654235,-400.0,0.00032014,30]
[403698751,1769490654244,-400.0,0.00032014,30]
[403698752,1769490654252,-400.0,0.00032014,30]
[403698753,1769490654261,-400.0,0.00032014,30]
[403698754,1769490654270,-400.0,0.00032014,30]
[403698755,1769490654278,-400.0,0.00032014,30]
[403698756,1769490654288,-184.74309967,0.00032014,30]
[403698757,1769490654297,-1000.0,0.00032055,7]
[403698758,1769490654310,-150.0,0.00032055,2]
[403698759,1769490654319,-500.0,0.0003216,2]
[403698760,1769490654328,-503.0,0.00032208,15]
[403698761,1769490654338,-700.0,0.00032222,14]
[403698762,1769490654348,-893.28248841,0.000323,2]
[403698764,1769490654357,-1000.0,0.00032329,7]
[403698765,1769490654365,-150.0,0.000324,7]
[403698766,1769490654375,-1000.0,0.00032603,7]
[403698767,1769490654388,-6198.23,0.000327,7]
[403698768,1769490654397,-1300.0,0.0003277,14]
[403698769,1769490654407,-4825.02494058,0.000328,2]
[403698770,1769490654416,-1897.5,0.00032849,120]
[403698771,1769490654425,-2370.5,0.00032849,120]
[403698772,1769490654435,-233.40647233,0.00032849,120]
[403698773,1769490654444,-2216.0,0.00032849,120]
[403698774,1769490654453,-2238.0,0.00032849,120]
[403698775,1769490654462,-949.08859872,0.00032849,120]
[403698776,1769490654471,-503.0,0.00032854,15]
[403698777,1769490654480,-210.0,0.0003286,30]
[403698778,1769490654490,-1000.0,0.00032864,2]
[403698779,1769490654500,-1716.16150209,0.0003287,4]
[403698780,1769490654509,-600.0,0.00032876,2]
[403698781,1769490654518,-600.0,0.00032876,2]
[403698782,1769490654527,-533.97061735,0.00032876,2]
[403698783,1769490654537,-500.0,0.00032876,30]
[403698784,1769490654547,-500.0,0.00032876,30]
[403698785,1769490654555,-500.0,0.00032876,30]
[403698786,1769490654564,-500.0,0.00032876,30]
[403698787,1769490654573,-500.0,0.00032876,30]
[403698788,1769490654582,-500.0,0.00032876,30]
[403698789,1769490654591,-500.0,0.00032876,30]
[403698790,1769490654600,-500.0,0.00032876,30]
[403698791,1769490654608,-500.0,0.00032876,30]
[403698792,1769490654617,-500.0,0.00032876,30]
[403698793,1769490654627,-500.0,0.00032876,30]
[403698794,1769490654636,-500.0,0.00032876,30]
[403698796,1769490654645,-500.0,0.00032876,30]